{"text_format":"3","workbook":"xlsx","n_sheets":2,"sheets":["存量","新增"],"read":"whole","date_system":"1900"}

{"sheet":"存量","index":0,"n_rows":22,"n_cols":8,"rows_kept":22,"merged":[[0,0,0,7]]}
["鄯善县2025年度土地储备计划项目清单"]
["编号","用地单位及项目名称","位置","土地用途","面积\n(公顷)","面积\n（亩）","土地出让金\n（万元）","备注"]
[1,"鄯善县云成投资建设有限公司新建住宅建设项目","鄯善县楼兰路南侧、东巴扎团结路西侧","住宅用地",1.6514,{"$f":"E3*15","v":24.771},819.44]
[2,"鄯善县云成投资建设有限公司新建住宅建设项目","鄯善县楼兰路南侧、东巴扎团结路西侧","住宅用地",1.0029,15.0435,497.65]
[3,"鄯善县长盛投资建设有限公司新建商业建设项目","鄯善县新建银玫瑰小区南侧、滨沙大桥北侧","商业用地",2.3176,34.764,1874.94]
[4,"鄯善县精诚城市建设投资经营有限责任公司新建鄯善县游客服务中心及基础配套设施建设项目用地","鄯善县木卡姆路南侧、英才幼儿园东侧","商业用地",1.3915,20.8725,1298.03]
[5,"鄯善县精诚城市投资有限公司新建住宅项目","鄯善县高铁新区流云路东侧、平安路本次","住宅用地",1.9619,29.4285,1216.89]
[6,"鄯善县精诚城市投资有限公司新建商业项目","鄯善县高铁新区沙海路西侧、平安路北侧","商业用地",3.4576,51.864,2423.04]
[7,"鄯善县精诚城市投资有限公司新建商业项目","鄯善县高铁新区沙海路西侧、北站路北侧","商业用地",5.0109,75.1635,3389.74]
[8,"鄯善县恒运房地产有限公司新建商业用地","鄯善蒲昌路南侧、新城北路西侧","商业用地",1.6823,25.2345,1916.6]
[9,"鄯善县精诚城市建设投资经营有限责任公司新建鄯善县游客服务中心及基础配套设施建设项目用地","鄯善县木卡姆路北侧、台台尔村阳光花园小区南侧","商业用地",0.8814,13.221,696.67]
[10,"鄯善县精诚城市建设投资经营有限责任公司新建商业项目用地","鄯善县高铁新区高铁路南侧、沙海路东侧","商业用地",0.812,12.18,471.98]
[11,"鄯善县精诚城市建设投资经营有限责任公司新建商业项目用地","鄯善县高铁新区高铁路南侧、迎宾路东侧","商业用地",1.0327,15.4905,591.33]
[12,"鄯善县精诚城市建设投资经营有限责任公司新建商业项目用地","鄯善县高铁新区平安路南侧、迎宾路东侧、北站路北侧","商业用地",1.5835,23.7525,1007.47]
[13,"鄯善县精诚城市建设投资经营有限责任公司新建商业项目用地","鄯善县高铁新区高铁路南侧、迎宾路西侧","商业用地",1.2767,19.1505,796.64]
[14,"鄯善县精诚城市建设投资经营有限责任公司新建住宅项目用地","鄯善县高铁新区平安路南侧、流云路西侧、北站路北侧","住宅用地",2.7655,41.4825,1419.93]
[15,"鄯善县精诚城市建设投资经营有限责任公司新建商业项目用地","鄯善县高铁新区高铁路南侧、迎宾路西侧、平安路北侧","商业用地",0.8089,12.1335,463.18]
[16,"鄯善县精诚城市建设投资经营有限责任公司新建住宅项目用地","鄯善县高铁新区高铁路南侧、流云路东侧、平安路北侧、云海路西侧","住宅用地",2.4333,36.4995,1249.36]
[17,"鄯善县精诚城市建设投资经营有限责任公司新建商业项目用地","鄯善县高铁新区平安路南侧、沙海路东侧","商业用地",1.414,21.21,906.48]
[18,"鄯善县精诚城市建设投资经营有限责任公司新建工业项目用地","鄯善县火车站镇","工业用地",12.9021,193.5315,327.57]
[19,"鄯善县精诚城市建设投资经营有限责任公司新建工业项目用地","鄯善县火车站镇","工业用地",15.9814,239.721,405.76]
[null,null,"合计",null,{"$f":"SUM(E3:E21)","v":60.3676},{"$f":"SUM(F3:F21)","v":905.514},{"$f":"SUM(G3:G21)","v":21772.7}]

{"sheet":"新增","index":1,"n_rows":14,"n_cols":12,"rows_kept":14,"merged":[[0,0,0,11]]}
["鄯善县土地储备计划"]
["编号","单位","位置","批复文号","批复时间","土地编号","性质","面积(公顷)","面积（亩）","土地出让金","电子监管号","备注"]
[1,"鄯善县精诚城市建设投资经营有限责任公司新建鄯善县游客服务中心及基础配套设施建设项目用地","鄯善县木卡姆路北侧、台台尔村阳光花园小区南侧","鄯政复[2025]65号","2025.2.21","鄯储备2025-9号","商业用地",0.8814,{"$f":"H3*15","v":13.221},1052.53,"6521222020B00829","为依法处置闲置土地，支持盘活存量土地，促进节约集约用地，积极稳妥化解重点领域风险，推动房地产高质量发展，根据自然资源部、国家发展改革委联合印发《关于实施妥善处置闲置存量土地若干政策措施的通知》（自然资发〔2024〕108号要求，对我县符合的项目进行梳理，该用地未开工建设现拟纳入妥善闲置存量土地，请予以审核确认。"]
[2,"鄯善县精诚城市建设投资经营有限责任公司新建商业项目用地","鄯善县高铁新区高铁路南侧、沙海路东侧","鄯政复[2025]65号","2025.2.21","鄯储备2025-10号","商业用地",0.812,12.18,471.98,"6521222018B00491","为依法处置闲置土地，支持盘活存量土地，促进节约集约用地，积极稳妥化解重点领域风险，推动房地产高质量发展，根据自然资源部、国家发展改革委联合印发《关于实施妥善处置闲置存量土地若干政策措施的通知》（自然资发〔2024〕112号要求，对我县符合的项目进行梳理，该用地未开工建设现拟纳入妥善闲置存量土地，请予以审核确认。"]
[3,"鄯善县精诚城市建设投资经营有限责任公司新建商业项目用地","鄯善县高铁新区高铁路南侧、迎宾路东侧","鄯政复[2025]65号","2025.2.21","鄯储备2025-11号","商业用地",1.0327,15.4905,712.78,"6521222018B00500","为依法处置闲置土地，支持盘活存量土地，促进节约集约用地，积极稳妥化解重点领域风险，推动房地产高质量发展，根据自然资源部、国家发展改革委联合印发《关于实施妥善处置闲置存量土地若干政策措施的通知》（自然资发〔2024〕113号要求，对我县符合的项目进行梳理，该用地未开工建设现拟纳入妥善闲置存量土地，请予以审核确认。"]
[4,"鄯善县精诚城市建设投资经营有限责任公司新建商业项目用地","鄯善县高铁新区平安路南侧、迎宾路东侧、北站路北侧","鄯政复[2025]65号","2025.2.21","鄯储备2025-12号","商业用地",1.5835,23.7525,1214.38,"\n6521222018B00518\n","为依法处置闲置土地，支持盘活存量土地，促进节约集约用地，积极稳妥化解重点领域风险，推动房地产高质量发展，根据自然资源部、国家发展改革委联合印发《关于实施妥善处置闲置存量土地若干政策措施的通知》（自然资发〔2024〕114号要求，对我县符合的项目进行梳理，该用地未开工建设现拟纳入妥善闲置存量土地，请予以审核确认。"]
[5,"鄯善县精诚城市建设投资经营有限责任公司新建商业项目用地","鄯善县高铁新区高铁路南侧、迎宾路西侧","鄯政复[2025]65号","2025.2.21","鄯储备2025-13号","商业用地",1.2767,19.1505,796.64,"6521222018B00448","为依法处置闲置土地，支持盘活存量土地，促进节约集约用地，积极稳妥化解重点领域风险，推动房地产高质量发展，根据自然资源部、国家发展改革委联合印发《关于实施妥善处置闲置存量土地若干政策措施的通知》（自然资发〔2024〕115号要求，对我县符合的项目进行梳理，该用地未开工建设现拟纳入妥善闲置存量土地，请予以审核确认。"]
[6,"鄯善县精诚城市建设投资经营有限责任公司新建住宅项目用地","鄯善县高铁新区平安路南侧、流云路西侧、北站路北侧","鄯政复[2025]65号","2025.2.21","鄯储备2025-14号","住宅用地",2.7655,41.4825,1419.93,"6521222018B00469","为依法处置闲置土地，支持盘活存量土地，促进节约集约用地，积极稳妥化解重点领域风险，推动房地产高质量发展，根据自然资源部、国家发展改革委联合印发《关于实施妥善处置闲置存量土地若干政策措施的通知》（自然资发〔2024〕116号要求，对我县符合的项目进行梳理，该用地未开工建设现拟纳入妥善闲置存量土地，请予以审核确认。"]
[7,"鄯善县精诚城市建设投资经营有限责任公司新建商业项目用地","鄯善县高铁新区高铁路南侧、迎宾路西侧、平安路北侧","鄯政复[2025]65号","2025.2.21","鄯储备2025-15号","商业用地",0.8089,12.1335,558.31,"6521222018B00480","为依法处置闲置土地，支持盘活存量土地，促进节约集约用地，积极稳妥化解重点领域风险，推动房地产高质量发展，根据自然资源部、国家发展改革委联合印发《关于实施妥善处置闲置存量土地若干政策措施的通知》（自然资发〔2024〕117号要求，对我县符合的项目进行梳理，该用地未开工建设现拟纳入妥善闲置存量土地，请予以审核确认。"]
[8,"鄯善县精诚城市建设投资经营有限责任公司新建住宅项目用地","鄯善县高铁新区高铁路南侧、流云路东侧、平安路北侧、云海路西侧","鄯政复[2025]65号","2025.2.21","鄯储备2025-16号","住宅用地",2.4333,36.4995,1249.36,"6521222018B00474","为依法处置闲置土地，支持盘活存量土地，促进节约集约用地，积极稳妥化解重点领域风险，推动房地产高质量发展，根据自然资源部、国家发展改革委联合印发《关于实施妥善处置闲置存量土地若干政策措施的通知》（自然资发〔2024〕118号要求，对我县符合的项目进行梳理，该用地未开工建设现拟纳入妥善闲置存量土地，请予以审核确认。"]
[9,"鄯善县精诚城市建设投资经营有限责任公司新建商业项目用地","鄯善县高铁新区平安路南侧、沙海路东侧","鄯政复[2025]65号","2025.2.21","鄯储备2025-17号","商业用地",1.414,21.21,882.32,"6521222018B00450","为依法处置闲置土地，支持盘活存量土地，促进节约集约用地，积极稳妥化解重点领域风险，推动房地产高质量发展，根据自然资源部、国家发展改革委联合印发《关于实施妥善处置闲置存量土地若干政策措施的通知》（自然资发〔2024〕119号要求，对我县符合的项目进行梳理，该用地未开工建设现拟纳入妥善闲置存量土地，请予以审核确认。"]
[10,"鄯善县精诚城市建设投资经营有限责任公司新建工业项目用地","鄯善县火车站镇","鄯政复[2025]65号","2025.2.21","鄯储备2025-18号","工业用地",12.9021,193.5315,411.87,null,"为依法处置闲置土地，支持盘活存量土地，促进节约集约用地，积极稳妥化解重点领域风险，推动房地产高质量发展，根据自然资源部、国家发展改革委联合印发《关于实施妥善处置闲置存量土地若干政策措施的通知》（自然资发〔2024〕120号要求，对我县符合的项目进行梳理，该用地未开工建设现拟纳入妥善闲置存量土地，请予以审核确认。"]
[11,"鄯善县精诚城市建设投资经营有限责任公司新建工业项目用地","鄯善县火车站镇","鄯政复[2025]65号","2025.2.21","鄯储备2025-19号","工业用地",15.9814,239.721,510.16]
[null,null,"合计",{"$nulls":4},{"$f":"SUM(H3:H13)","v":41.8915},{"$f":"SUM(I3:I13)","v":628.3725},{"$f":"SUM(J3:J13)","v":9280.26}]